bitfinex-derivatives/quotes_ETHF0:USTF0_20250905
["timestamp","ask_amount","ask_price","bid_price","bid_amount"]
[1757043848449,0.6846,4309.7,4309.6,0.5143]
[1757043848646,0.6846,4309.7,4309.6,0.233]
[1757043849538,0.6846,4309.7,4309.6,0.4437]
[1757043851144,0.6846,4309.7,4309.4,35.2308]
[1757043851345,0.2946,4309.6,4309.5,0.4437]
[1757043851548,0.6846,4309.6,4309.5,0.4437]
[1757043852641,0.1215,4310.0,4308.9,0.5143]
[1757043852642,0.8061,4309.0,4308.9,0.5143]
[1757043852848,0.8061,4309.0,4308.9,0.7473]
[1757043853337,0.6846,4309.0,4308.9,0.9496]
[1757043853753,0.8061,4309.0,4308.9,0.9496]
[1757043853939,0.8061,4309.0,4308.9,0.646]
[1757043856742,0.8061,4309.0,4308.9,0.4437]
[1757043857136,0.1951,4310.0,4309.9,0.7166]
[1757043857347,0.5115,4310.5,4310.4,0.2107]
[1757043857542,0.8061,4310.5,4310.4,0.4447]
[1757043857748,0.8061,4310.5,4310.4,0.234]
[1757043859843,0.8061,4310.5,4310.4,0.4416]
[1757043860450,0.8061,4310.5,4310.4,0.7439]
[1757043860644,0.8061,4310.5,4310.4,0.4416]
[1757043862547,0.8061,4310.5,4310.4,0.234]
[1757043865651,3.3249,4312.5,4311.0,0.1173]
[1757043865853,1.32269025,4312.4,4311.6,3.2078]
[1757043866053,0.2921,4311.7,4311.6,3.2078]
[1757043866253,0.6987,4311.7,4311.6,3.4438]
[1757043866456,0.6987,4311.7,4311.6,3.6514]
[1757043867546,0.6987,4311.7,4311.6,3.4438]
[1757043868162,0.6987,4311.7,4311.6,3.6514]
[1757043868565,0.6987,4311.7,4311.6,4.1598]
[1757043869556,0.2921,4311.7,4311.6,4.1598]
[1757043869753,0.1171,4312.0,4311.6,4.1598]
[1757043869754,0.2921,4313.4,4312.5,0.1173]
[1757043870055,0.4066,4312.9,4312.8,3.4154]
[1757043870358,0.6987,4312.9,4312.8,0.182]
[1757043870950,0.4066,4312.9,4312.3,3.5101]
[1757043871151,0.6987,4312.8,4312.7,0.237]
[1757043873357,0.6987,4312.8,4312.7,0.4446]
[1757043873759,0.6987,4312.8,4312.7,0.2076]
[1757043873960,0.6987,4312.8,4312.7,0.4446]
[1757043878560,0.6987,4312.8,4312.3,3.5101]
[1757043878561,0.1171,4312.5,4312.3,3.5101]
[1757043878765,0.6987,4312.4,4312.3,0.2076]
[1757043878965,0.6987,4312.4,4312.3,0.4446]
[1757043879556,0.6987,4312.4,4312.3,0.2076]
[1757043879760,0.6987,4312.4,4312.3,0.4446]
[1757043883065,0.2921,4314.4,4313.1,0.41729]
[1757043883366,0.1171,4314.0,4313.9,0.2076]
[1757043883659,0.6987,4313.9,4313.8,3.2078]
[1757043883860,0.6987,4313.9,4313.3,0.3023]
[1757043884062,0.5237,4313.5,4313.4,0.4456]
[1757043884261,0.8158,4313.5,4313.4,0.954]
[1757043884459,0.8158,4313.5,4313.4,0.716]
[1757043884766,0.8158,4313.5,4313.4,0.954]
[1757043885366,0.6987,4313.5,4313.4,0.954]
[1757043886460,0.4955,4313.5,4313.4,0.954]
[1757043887570,0.6987,4313.5,4313.4,0.954]
[1757043887771,0.8158,4313.5,4313.4,0.4137]
[1757043887970,0.8158,4313.5,4313.4,0.238]
[1757043888762,0.1171,4313.5,4313.4,0.238]
[1757043888968,0.8301,4313.5,4313.4,0.238]
[1757043891868,0.2996,4313.4,4313.1,3.2078]
[1757043892068,0.713,4313.4,4313.3,0.238]
[1757043892874,0.713,4313.4,4313.3,0.4335]
[1757043893176,0.713,4313.4,4313.3,0.925]
[1757043893473,0.713,4313.4,4313.3,1.2581758]
[1757043893673,0.713,4313.4,4313.3,1.0626758]
[1757043894064,0.713,4313.4,4313.3,1.2581758]
[1757043894270,0.713,4313.4,4313.3,1.7496758]
[1757043895569,0.1261,4315.5,4314.1,0.41719]
[1757043895773,0.5121,4314.8,4314.2,3.4458]
[1757043896077,0.5121,4314.8,4314.7,0.8246758]
[1757043896267,0.2996,4314.8,4314.7,1.0636758]
[1757043896576,0.2996,4314.8,4314.7,4.2714758]
[1757043896775,0.2996,4314.9,4314.7,4.2714758]
[1757043897574,0.1261,4315.5,4314.8,0.23176]
[1757043897772,0.713,4315.3,4315.2,3.2078]
[1757043897972,0.713,4315.3,4315.2,3.4468]
[1757043898173,0.5121,4315.3,4315.2,3.4468]
[1757043898375,0.1261,4315.5,4315.2,10.29675799]
[1757043898580,0.2996,4315.4,4315.2,10.29675799]
[1757043898881,0.1261,4315.5,4315.2,10.29675799]
[1757043899081,0.2996,4315.4,4315.2,10.29675799]
[1757043900381,0.2125,4315.3,4315.2,6.29675799]
[1757043900581,0.5121,4315.3,4315.2,6.29675799]
[1757043900781,0.2996,4315.3,4315.2,6.29675799]
[1757043901275,0.1261,4315.5,4315.2,6.29675799]
[1757043901469,0.4257,4315.5,4315.2,6.29675799]
[1757043901783,0.5121,4315.9,4315.2,6.29675799]
[1757043902483,0.5121,4315.8,4315.2,6.29675799]
[1757043902783,0.5121,4315.8,4315.7,3.2078]
[1757043902981,0.5121,4315.8,4315.7,3.4468]
[1757043903582,0.2996,4315.8,4315.7,3.4468]
[1757043904980,0.2996,4315.8,4315.7,6.29675799]
[1757043906179,0.5121,4315.8,4315.7,6.29675799]
[1757043907383,0.2996,4316.3,4315.7,6.29675799]
[1757043907678,0.1261,4316.0,4315.7,6.29675799]
[1757043907883,0.2996,4315.9,4315.7,6.29675799]
[1757043910984,0.1261,4316.0,4315.7,6.29675799]
[1757043911282,0.2996,4315.9,4315.7,6.29675799]
[1757043911477,0.1261,4316.0,4315.7,6.29675799]
[1757043911674,0.2996,4315.9,4315.7,6.29675799]
[1757043911878,0.1261,4316.0,4315.7,6.29675799]
[1757043912081,0.4134,4315.8,4315.7,3.2078]
[1757043912276,0.5121,4315.2,4315.1,6.05775799]
[1757043912476,0.5121,4315.2,4315.1,6.29575799]
[1757043912677,0.1261,4315.5,4315.1,6.29575799]
[1757043912887,0.4257,4315.5,4315.1,6.29575799]
[1757043913086,0.2996,4315.4,4315.1,6.29575799]
[1757043913688,0.1261,4315.5,4315.1,6.29575799]
[1757043913986,0.2996,4315.4,4315.1,6.29575799]
[1757043914174,0.5121,4315.4,4315.1,6.29575799]
[1757043914378,0.2996,4315.3,4315.1,6.29575799]
[1757043914581,0.3386,4315.5,4315.1,6.29575799]
[1757043914777,0.1261,4315.5,4315.1,6.29575799]
[1757043914978,0.2996,4315.4,4315.1,6.29575799]
[1757043915272,0.713,4315.2,4315.1,6.05775799]
[1757043915480,0.713,4315.2,4315.1,3.4458]
[1757043917487,0.713,4315.2,4315.1,4.26968998]
[1757043919588,0.713,4315.2,4315.1,4.27078998]
[1757043920087,0.713,4315.2,4315.1,4.27188998]
[1757043920680,0.1261,4315.5,4315.1,4.27188998]
[1757043920886,0.2978,4315.4,4315.1,3.448]
[1757043921182,0.4239,4315.5,4315.1,3.448]
[1757043921384,0.2978,4315.4,4315.1,3.448]
[1757043921582,0.1261,4315.5,4315.1,3.448]
[1757043921882,0.1261,4315.5,4315.4,0.82388998]
[1757043922089,0.4239,4315.5,4315.4,1.06188998]
[1757043922574,0.6228,4315.5,4315.4,1.06188998]
[1757043923386,0.4239,4315.5,4315.4,1.06188998]
[1757043923781,0.2989834,4315.8,4315.4,1.06188998]
[1757043923981,0.2989834,4315.8,4315.7,0.82388998]
[1757043924184,0.2989834,4315.8,4315.7,1.06188998]
[1757043925289,0.2989834,4315.8,4315.7,4.26968998]
[1757043925485,0.7104834,4315.8,4315.1,3.2078]
[1757043925682,0.7104834,4315.8,4315.7,0.82388998]
[1757043925885,0.7104834,4315.8,4315.7,1.06188998]
[1757043926284,0.7104834,4315.8,4315.7,0.82388998]
[1757043926485,0.7104834,4315.8,4315.7,1.06188998]
[1757043927288,3.2078,4316.8,4316.3,0.2022]
[1757043927289,0.4967,4316.4,4316.3,0.2022]
[1757043927482,0.4967,4316.4,4316.3,2.29017996]
[1757043927690,0.4967,4316.4,4316.3,1.46628998]
[1757043927885,0.2978,4316.4,4316.3,1.59268998]
[1757043928392,0.4967,4316.4,4316.3,1.46628998]
[1757043929289,0.7093,4316.4,4316.3,1.46628998]
[1757043930986,0.4967,4316.4,4316.3,4.67408998]
[1757043932088,0.4967,4316.4,4316.3,4.43608998]
[1757043932292,0.4967,4316.4,4316.3,4.67408998]
[1757043934592,0.1167,4316.0,4315.8,3.2078]
[1757043934894,0.1167,4317.5,4316.0,0.1264]
[1757043935096,0.5282,4317.5,4317.4,0.82388998]
[1757043935389,0.826,4317.5,4317.4,1.06188998]
[1757043935689,0.826,4317.5,4317.4,0.82388998]
[1757043935896,0.826,4317.5,4317.4,1.06188998]
[1757043936787,0.826,4317.5,4317.4,1.46628998]
[1757043937387,0.1167,4318.5,4317.5,0.1122]
[1757043937588,0.5282,4318.5,4318.4,0.82388998]
[1757043939492,0.2978,4318.4,4318.3,0.2116]
[1757043939688,0.7093,4318.4,4318.3,0.2116]
[1757043939884,0.7093,4318.4,4318.3,0.7081]
[1757043940288,0.7093,4318.4,4317.8,0.292]
[1757043940491,0.5282,4318.0,4317.9,0.4506]
[1757043940692,0.826,4318.0,4317.9,0.2116]
[1757043940894,0.826,4318.0,4317.7,0.239]
[1757043941996,0.826,4318.0,4317.4,3.2078]
[1757043942297,0.4115,4317.4,4317.3,0.239]
[1757043942497,0.7093,4317.4,4317.3,0.239]
[1757043943299,0.7093,4317.4,4317.1,0.239]
[1757043943496,0.7093,4317.4,4316.8,3.2078]
[1757043943692,0.1167,4317.5,4316.6,0.239]
[1757043943693,0.1989,4316.7,4316.6,0.239]
[1757043943892,0.4115,4316.7,4316.3,3.4998]
[1757043944098,0.1167,4317.0,4316.4,0.4506]
[1757043944099,0.826,4316.5,4316.4,0.4506]
[1757043945095,0.826,4316.5,4316.4,0.6551]
[1757043945296,0.826,4316.5,4316.4,0.9471]
[1757043945897,0.826,4316.5,4316.4,0.6551]
[1757043947900,0.826,4316.5,4316.3,3.2078]
[1757043948106,0.7058,4316.4,4316.3,3.2078]
[1757043948704,0.4237,4316.0,4315.8,3.2078]
[1757043948906,0.4237,4316.0,4315.9,32.217]
[1757043950004,0.4237,4316.0,4315.9,32.534]
[1757043950300,0.4237,4316.0,4315.9,32.533]
[1757043950799,0.1167,4316.5,4316.4,0.2091]
[1757043951004,0.1167,4316.5,4316.4,0.4122]
[1757043951005,0.8225,4316.5,4316.4,0.4122]
[1757043951194,0.8225,4316.5,4316.4,0.7292]
[1757043951397,0.7058,4316.5,4316.4,0.7292]
[1757043952301,0.8234,4316.5,4316.4,0.7292]
[1757043952605,0.8234,4316.5,4316.4,0.4122]
[1757043953708,0.5173,4316.5,4315.9,31.978]
[1757043954010,0.4237,4316.0,4315.9,31.978]
[1757043954201,0.4237,4316.0,4315.9,32.216]
[1757043954398,0.4237,4316.0,4315.9,31.978]
[1757043954802,0.4237,4316.0,4315.9,32.216]
[1757043955198,3.3254,4316.5,4315.9,32.216]
[1757043955199,3.5226,4316.5,4316.4,0.4122]
[1757043955404,3.7111,4316.5,4316.4,0.9672]
[1757043956713,4.0312,4316.5,4316.4,0.6502]
[1757043960418,0.8234,4316.5,4316.4,0.6502]
[1757043961817,0.8234,4316.5,4316.4,0.9672]
[1757043962012,0.7058,4316.5,4316.4,0.9672]
[1757043963006,0.5033,4316.5,4316.4,0.9672]
[1757043965808,0.3061,4316.5,4316.4,0.9672]
[1757043967218,0.8234,4316.5,4316.4,0.9672]
[1757043967415,0.8234,4316.5,4316.4,0.238]
[1757043967721,0.8234,4316.5,4316.4,0.4471]
[1757043967923,0.8234,4316.5,4316.4,0.6502]
[1757043968217,0.8234,4316.5,4316.4,0.9672]
[1757043969416,0.5033,4316.5,4316.4,0.9672]
[1757043971326,0.7058,4316.5,4316.4,0.9672]
[1757043972015,0.8234,4316.5,4316.4,0.9672]
[1757043972216,0.8234,4316.5,4316.4,0.6502]
[1757043974315,0.8234,4316.5,4316.4,0.4122]
[1757043974516,0.8234,4316.5,4316.4,0.6502]
[1757043974715,0.7058,4316.5,4316.4,0.9672]
[1757043977214,0.8234,4316.5,4316.4,0.9672]
[1757043977411,0.8234,4316.5,4316.4,0.4122]
[1757043977722,0.8234,4316.5,4316.0,0.317]
[1757043977915,0.4181,4316.2,4316.1,0.237]
[1757043978119,0.709,4316.2,4316.1,0.438]
[1757043979729,0.709,4316.2,4316.1,0.201]
[1757043979927,0.709,4316.2,4316.1,0.438]
[1757043981129,0.709,4316.2,4316.1,0.201]
[1757043981325,0.1164,4316.0,4315.7,0.3024]
[1757043981632,0.8254,4316.0,4315.9,0.438]
[1757043981834,0.8254,4316.0,4315.9,0.9426]
[1757043983435,0.4959,4316.0,4315.9,0.9426]
[1757043983635,0.1176,4316.5,4315.9,0.9426]
[1757043983936,0.5357,4316.5,4316.4,0.201]
[1757043984435,0.8266,4316.5,4316.4,0.7056]
[1757043985331,0.4959,4316.5,4316.4,0.9426]
[1757043990645,0.4181,4317.0,4316.9,0.7056]
[1757043990839,0.5345,4317.0,4316.9,0.438]
[1757043991241,0.8254,4317.0,4316.9,0.438]
[1757043991742,0.8254,4317.0,4316.9,0.9426]
[1757043997150,0.8254,4317.0,4316.9,0.6402]
[1757043997650,0.8254,4317.0,4316.9,0.9426]
[1757043998551,0.8254,4317.0,4316.9,0.6402]
[1757043999347,0.8254,4317.0,4316.9,0.9426]
[1757043999552,0.8254,4317.0,4316.9,1.7659882]
[1757044000653,0.2909,4317.0,4316.9,1.7659882]
[1757044000948,0.4959,4317.0,4316.9,1.7659882]
[1757044001350,0.4959,4317.0,4316.8,3.2078]
[1757044001351,0.5345,4317.0,4316.8,3.2078]
[1757044001546,0.5345,4317.0,4316.9,0.9416]
[1757044002150,0.709,4317.0,4316.9,0.9416]
[1757044003957,0.8254,4317.0,4316.9,0.9416]
[1757044005856,0.2909,4316.9,4316.8,3.2078]
[1757044006057,0.709,4316.9,4316.8,3.4438]
[1757044006355,0.709,4316.9,4316.8,0.236]
[1757044008860,0.531,4316.5,4316.4,1.3351882]
[1757044009051,0.8342,4316.5,4316.4,1.5711882]
[1757044009757,0.8342,4316.5,4316.4,1.3351882]
[1757044009955,0.8342,4316.5,4316.4,1.2737882]
[1757044010962,0.8342,4316.5,4316.4,1.0377882]
[1757044011163,0.8342,4316.5,4316.4,1.2737882]
[1757044013159,0.8342,4316.5,4316.4,1.4736882]
[1757044013461,0.8342,4316.5,4316.4,0.9477]
[1757044013663,0.8342,4316.5,4316.4,1.7710882]
[1757044014469,0.8342,4316.5,4316.4,1.2737882]
[1757044014965,0.3032,4316.4,4316.2,3.2078]
[1757044015262,1.2290882,4316.4,4315.7,3.2078]
[1757044015473,0.531,4315.5,4315.4,3.13119238]
[1757044015765,0.8342,4315.5,4315.4,0.9477]
[1757044015959,0.8342,4315.5,4315.4,0.6503]
[1757044016965,0.8342,4315.5,4315.4,0.9477]
[1757044020362,0.8342,4315.5,4315.4,0.236]
[1757044020770,0.531,4315.5,4315.4,0.236]
[1757044021465,0.8342,4315.5,4315.4,0.236]
[1757044021667,0.7089,4315.3,4314.3,0.8233882]
[1757044021870,0.8342,4314.5,4314.4,0.6503]
[1757044022066,0.8342,4314.5,4314.4,0.2144]
[1757044022263,0.8342,4314.5,4314.4,0.4504]
[1757044022958,0.8342,4314.5,4314.4,0.9477]
[1757044023158,0.8342,4314.5,4314.4,0.6503]
[1757044023861,0.8342,4314.5,4314.4,0.4143]
[1757044024365,0.8342,4314.5,4314.4,0.4504]
[1757044024672,0.8342,4314.5,4314.4,0.6503]
[1757044024863,0.8342,4314.5,4314.4,0.9477]
[1757044025262,0.7089,4314.5,4314.4,0.7117]
[1757044025858,0.7089,4314.5,4314.4,0.9477]
[1757044026869,0.7089,4314.5,4314.4,0.6503]
[1757044027069,0.8342,4314.5,4314.4,0.6503]
[1757044027370,0.8342,4314.5,4314.4,0.2144]
[1757044027675,0.7089,4314.2,4314.1,3.2078]
[1757044027876,0.7089,4314.2,4314.1,3.4438]
[1757044028172,0.7089,4314.2,4314.1,3.2078]
[1757044028374,0.7089,4314.2,4314.1,3.4438]
[1757044028775,0.7089,4314.2,4314.1,4.1555]
[1757044029576,0.7089,4314.2,4314.1,3.8581]
[1757044032482,1.5322882,4314.2,4314.0,0.00347347]
[1757044032681,0.7089,4314.2,4314.1,0.2144]
[1757044032981,0.7089,4314.2,4314.1,0.7117]
[1757044033777,0.00347347,4314.9,4314.8,0.2974]
[1757044034076,0.00347347,4314.9,4314.8,0.7117]
[1757044034382,0.71237347,4314.9,4314.8,0.6503]
[1757044034679,0.71237347,4314.9,4314.8,0.9477]
[1757044036381,0.71237347,4314.9,4314.8,1.7710882]
[1757044037477,0.50997347,4314.9,4314.8,0.9477]
[1757044037674,0.50997347,4314.9,4314.8,1.7710882]
[1757044037875,0.00347347,4314.9,4314.8,1.7710882]
[1757044038582,0.29857347,4314.9,4314.8,1.7710882]
[1757044038977,0.00347347,4314.9,4314.8,1.7710882]
[1757044039382,0.00347347,4314.9,4314.8,1.5350882]
[1757044039681,0.29857347,4314.9,4314.8,1.5350882]
[1757044039880,0.50107347,4314.9,4314.8,1.7710882]
[1757044040083,0.70397347,4314.9,4314.8,0.2144]
[1757044040283,0.70397347,4314.9,4314.8,0.236]
[1757044040879,0.70397347,4314.9,4314.8,0.4478]
[1757044043083,0.70397347,4314.9,4314.8,0.6424]
[1757044043286,0.50107347,4314.9,4314.8,0.9358]
[1757044043685,0.00347347,4314.9,4314.8,0.9358]
[1757044044584,0.29857347,4314.9,4314.8,0.9358]
[1757044048891,0.50107347,4314.9,4314.8,0.9358]
[1757044051185,0.00347347,4314.9,4314.8,0.9358]
[1757044052091,0.29857347,4314.9,4314.8,0.9358]
[1757044053495,0.50107347,4314.9,4314.8,0.9358]
[1757044053887,0.29857347,4314.9,4314.8,0.9358]
[1757044054088,0.00347347,4314.9,4314.8,0.9358]
[1757044054793,0.2951,4315.6,4315.5,0.4064]
[1757044054993,0.2951,4315.6,4315.5,0.9348]
[1757044057996,0.1253,4316.0,4315.5,0.6414]
[1757044058298,0.4976,4315.9,4315.8,0.6998]
[1757044058498,0.4976,4315.9,4315.8,0.9348]
[1757044059286,0.2951,4315.9,4315.8,0.9348]
[1757044059687,0.4976,4315.9,4315.8,0.9348]
[1757044062595,0.7005,4315.9,4315.8,0.9348]
[1757044063903,3.2078,4316.4,4315.8,0.9348]
[1757044064096,0.2951,4316.3,4316.2,0.6998]
[1757044064398,0.2951,4316.3,4316.2,0.9348]
[1757044064601,0.4976,4316.3,4316.2,0.9348]
[1757044064796,0.2951,4316.8,4316.3,0.2934]
[1757044065002,0.4976,4316.8,4316.7,0.6998]
[1757044065597,0.7005,4316.8,4316.7,0.6998]
[1757044066605,0.7005,4316.8,4316.7,0.2118]
[1757044067201,0.1223,4316.5,4316.3,0.00347347]
[1757044067400,0.7005,4316.4,4316.3,0.21527347]
[1757044067605,0.7005,4316.4,4316.3,0.45027347]
[1757044067801,0.2951,4318.4,4317.2,0.4169]
[1757044068008,0.5246,4318.3,4318.2,4.16739064]
[1757044068298,0.7217,4318.3,4318.2,3.4448]
[1757044068504,0.7217,4318.3,4318.2,4.11664277]
[1757044069410,0.7217,4318.3,4318.2,4.11617512]
[1757044070310,0.7217,4318.3,4318.2,4.11583283]
[1757044074814,0.7217,4318.3,4318.2,4.11414696]
[1757044077519,0.7217,4318.3,4318.2,4.11395809]
[1757044079017,0.3206,4318.3,4318.2,4.11395809]
[1757044079224,0.4429,4318.5,4318.2,4.11395809]
[1757044079408,0.3206,4318.8,4318.4,0.95959064]
[1757044079716,0.5246,4320.8,4319.6,0.41666]
[1757044080020,0.5246,4320.8,4320.7,4.16739064]
[1757044080213,0.3206,4320.8,4320.7,5.07644884]
[1757044080722,0.1286,4321.0,4320.7,5.07644884]
[1757044080723,0.4492,4321.0,4320.7,5.07644884]
[1757044081018,0.1286,4321.5,4320.8,0.32222883]
[1757044081019,0.3206,4321.4,4320.8,0.32222883]
[1757044081214,0.5246,4321.4,4321.3,3.2078]
[1757044081413,0.3206,4321.4,4321.3,4.11664593]
[1757044081812,0.5246,4321.4,4321.3,4.11664593]
[1757044082526,0.5246,4321.4,4321.3,3.87564593]
[1757044082819,0.5246,4321.4,4321.3,4.11664593]
[1757044083921,0.7217,4321.4,4321.3,4.11664593]
[1757044084115,0.7217,4321.4,4321.3,3.77102883]
[1757044084316,0.7217,4321.4,4321.3,4.11587354]
[1757044085220,0.1286,4323.5,4321.6,0.41647]
[1757044085520,0.3326,4323.5,4323.3,0.95959064]
[1757044085821,0.7217,4323.4,4323.3,0.95959064]
[1757044086016,0.7217,4323.4,4323.3,0.66530653]
[1757044086323,4.7217,4323.4,4323.3,0.66501977]
[1757044088412,0.7217,4323.4,4323.3,0.90901977]
[1757044089020,0.7217,4323.4,4323.3,0.66501977]
[1757044089216,0.7217,4323.4,4323.3,0.91001977]
[1757044090420,0.7217,4323.4,4323.3,0.66501977]
[1757044090421,4.7217,4323.4,4323.3,0.66501977]
[1757044091229,3.22920923,4324.4,4323.3,0.66501977]
[1757044091526,53.334,4403.1,4323.3,0.66501977]
[1757044091527,0.1286,4327.0,4326.1,0.3103]
[1757044091724,0.1286,4327.0,4326.9,3.2078]
[1757044091725,0.4492,4327.0,4326.9,3.2078]
[1757044091925,0.4492,4327.0,4326.9,0.68247451]
[1757044092126,0.4492,4327.0,4326.9,3.89027451]
[1757044092330,0.3206,4327.0,4326.9,3.89027451]
[1757044092628,0.3206,4327.4,4326.9,3.89027451]
[1757044092831,0.1286,4327.5,4327.0,0.68247451]
[1757044093122,0.1286,4327.5,4327.1,0.68247451]
[1757044093326,0.1286,4327.5,4327.2,0.68247451]
[1757044093524,0.3206,4327.4,4327.3,0.68247451]
[1757044095727,0.1286,4328.0,4327.3,0.68247451]
[1757044095927,0.1286,4328.0,4327.4,3.89027451]
[1757044096126,0.3206,4327.9,4327.5,0.68247451]
[1757044096329,0.3206,4327.9,4327.6,0.68247451]
[1757044096527,0.3206,4327.9,4327.7,0.68247451]
[1757044096733,0.3206,4327.9,4327.8,0.68247451]
[1757044097934,4.3206,4327.9,4327.8,0.68247451]
[1757044098134,4.3206,4327.9,4327.8,0.34833244]
[1757044098831,0.3206,4327.9,4327.8,0.34833244]
[1757044099927,0.7154,4327.9,4327.8,0.34833244]
[1757044100131,0.5215,4327.9,4327.8,1.38422815]
[1757044100332,0.3075,4328.4,4327.8,1.38422815]
[1757044100530,0.5084,4328.0,4327.9,4.09002815]
[1757044100732,0.6304,4328.0,4327.9,4.34502815]
[1757044101333,0.6304,4328.0,4327.9,4.20783244]
[1757044101537,0.6304,4328.0,4327.9,3.95283244]
[1757044101835,0.6304,4328.0,4327.9,4.20783244]
[1757044102233,0.5084,4328.0,4327.9,4.51693244]
[1757044102435,0.5084,4328.6,4328.5,0.3967]
[1757044102636,0.5084,4328.6,4328.5,0.74503244]
[1757044103537,0.7023,4328.6,4328.5,0.34833244]
[1757044103732,4.7023,4328.6,4328.5,0.34833244]
[1757044103935,0.3836,4329.5,4328.5,0.34833244]
[1757044103936,0.2009,4328.7,4328.5,0.34833244]
[1757044104234,0.5084,4328.7,4328.6,0.80713244]
[1757044104431,0.7023,4328.7,4328.6,0.55213244]
[1757044104633,0.7023,4328.7,4328.6,0.60333244]
[1757044104835,0.7023,4328.7,4328.6,0.34833244]
[1757044105035,0.7023,4328.7,4328.6,0.34731276]
[1757044105234,0.7023,4328.7,4328.6,0.55111276]
[1757044105435,0.7023,4328.7,4328.6,0.74401276]
[1757044105633,0.5084,4328.7,4328.6,1.05311276]
[1757044105833,0.5084,4328.7,4328.6,1.30811276]
[1757044106035,0.3075,4328.7,4328.6,1.30811276]
[1757044106236,0.6784,4328.9,4328.8,0.3967]
[1757044106437,0.6784,4328.9,4328.8,0.74401276]
[1757044106942,0.8723,4328.9,4328.8,0.74401276]
[1757044107245,0.8723,4328.9,4328.8,1.07473813]
[1757044110445,0.7023,4329.8,4329.2,0.1609]
[1757044110740,0.122,4330.0,4329.6,3.4116]
[1757044110741,0.7023,4329.7,4329.6,3.4116]
[1757044110936,0.7023,4329.7,4329.6,4.55054148]
[1757044111143,0.7023,4329.7,4329.6,4.29454148]
[1757044111345,0.7023,4329.7,4329.6,4.55054148]
[1757044111938,0.7023,4329.7,4329.6,4.74344148]
[1757044112235,0.7023,4329.7,4329.6,4.34674148]
[1757044112430,0.7023,4329.7,4329.6,4.14183813]
[1757044112843,0.7023,4329.7,4329.6,3.88583813]
[1757044113140,0.7023,4329.7,4329.6,0.67803813]
[1757044113541,0.7023,4329.7,4329.6,0.671973]
[1757044114943,4.7023,4329.7,4329.6,0.34124763]
[1757044115246,0.7023,4329.2,4329.1,0.00346536]
[1757044115542,0.7023,4329.2,4329.1,0.86000927]
[1757044115736,0.7023,4329.2,4329.1,0.65417853]
[1757044116131,0.7023,4329.2,4329.1,0.86019856]
[1757044116337,0.3948,4328.6,4328.5,3.2078]
[1757044116642,0.7023,4328.6,4328.5,3.41387799]
[1757044116843,4.7023,4328.6,4328.5,3.2078]
[1757044117037,4.7023,4328.6,4327.2,0.3091]
[1757044117038,0.7023,4327.6,4327.2,0.3091]
[1757044117340,0.7023,4327.4,4327.3,0.20643793]
[1757044117541,0.7023,4327.4,4327.3,0.71933793]
[1757044118239,0.3948,4327.4,4327.3,0.91223793]
[1757044118631,0.2009,4327.4,4327.3,0.91223793]
[1757044118836,0.4559,4327.8,4327.7,0.2038]
[1757044119136,1.01541551,4327.8,4327.7,0.71933793]
[1757044119332,1.51681551,4327.8,4327.7,0.20643793]
[1757044120142,5.51681551,4327.8,4327.7,0.20643793]
[1757044120444,0.95431551,4327.8,4327.7,0.91223793]
[1757044120644,1.26181551,4327.8,4327.7,0.91223793]
[1757044120838,1.26181551,4327.8,4327.7,0.71933793]
[1757044121032,1.26181551,4327.8,4327.7,0.20643793]
[1757044122046,1.26181551,4327.8,4327.7,0.71933793]
[1757044122346,1.26181551,4327.8,4327.7,0.41182991]
[1757044122548,1.26181551,4327.8,4327.7,0.20802991]
[1757044124041,5.69308878,4327.8,4327.7,0.20802991]
[1757044124247,9.69308878,4327.8,4327.7,0.20802991]
[1757044124547,8.46961551,4327.8,4327.7,0.20802991]
[1757044125842,8.46961551,4327.8,4327.7,0.20808124]
[1757044126137,2.1950255,4327.8,4327.7,0.91388124]
[1757044126341,2.4490255,4327.8,4327.7,0.7058]
[1757044126541,1.20831551,4327.8,4327.7,0.7058]
[1757044126738,1.01441551,4327.8,4327.7,0.7058]
[1757044127346,1.01441551,4327.8,4327.7,0.91378582]
[1757044127648,1.51581551,4327.8,4327.7,0.91378582]
[1757044127849,1.51581551,4327.8,4327.7,0.72088582]
[1757044128350,1.51581551,4327.8,4327.7,1.33863917]
[1757044129144,1.51581551,4327.8,4327.7,0.82573917]
[1757044130547,0.81351551,4327.8,4327.7,1.53423917]
[1757044130749,0.81351551,4327.8,4327.7,5.53423917]
[1757044131052,0.81351551,4327.8,4327.7,1.53423917]
[1757044132256,1.54191551,4327.8,4327.7,1.53423917]
[1757044132454,1.54191551,4327.8,4327.7,1.53416225]
[1757044132854,1.23741551,4327.8,4327.7,1.53416225]
[1757044133153,0.81351551,4327.8,4327.7,1.53416225]
[1757044133352,0.55951551,4327.8,4327.7,1.53416225]
[1757044133749,0.55951551,4328.0,4327.7,1.53416225]
[1757044133949,0.55951551,4327.9,4327.8,1.53344351]
[1757044134255,0.253,4328.1,4328.0,0.3097]
[1757044134446,0.81485021,4328.1,4328.0,1.64934351]
[1757044135257,0.56185021,4328.1,4328.0,1.64934351]
[1757044135450,0.56185021,4328.1,4328.0,1.33964351]
[1757044135755,0.56185021,4328.3,4328.0,1.33964351]
[1757044135955,0.56185021,4328.2,4328.1,1.22374545]
[1757044136354,0.253,4328.5,4328.1,1.22374545]
[1757044136552,0.56185021,4328.4,4328.3,0.3988]
[1757044136755,0.56185021,4328.4,4328.3,1.22378591]
[1757044136952,0.56185021,4328.4,4328.3,1.53348591]
[1757044137558,0.77505021,4328.4,4328.3,1.53350541]
[1757044137950,0.77505021,4328.4,4328.3,1.53350368]
[1757044138144,0.2132,4328.4,4328.3,1.53350368]
[1757044139150,0.7284,4328.4,4328.3,1.13470368]